Cogmind - Beta 15 @@@ ROGUE MODE // 2025.08.07 @ 20:04:48 Player: Zoe Result: Destroyed by G-47 Trooper with Particle Gun Performance ------------- Evolutions (2) 1000 Regions Visited (3) 600 Robots Destroyed (27) 135 Value Destroyed (1001) 1001 Prototype IDs (3) 60 Alien Tech Used (0) 0 Bonus (0) 0 TOTAL SCORE: 2796 Bonus ------- None Cogmind --------- Core Integrity 0/550 Matter 300/300 Energy 13/100 System Corruption 0% Temperature Cool (9) Movement Core (200) Ox3 Location -8/Materials Parts ------- > --- POWER (1) -------- (None) > --- PROPULSION (2) --- VSS Leg VSS Leg > --- UTILITY (5) ------ Small Storage Unit Trap Scanner Signal Interpreter Weapon Cycler Dynamic Insulation System > --- WEAPON (3) ------- (None) > --- INVENTORY (8) ---- Light Nuclear Core Carbon-fiber Leg Carbon-fiber Leg VSS Leg Improved Heat Sink Particle Gun High-powered Shotgun Peak State ------------ > --- POWER ------------ Deuterium Engine > --- PROPULSION ------- Carbon-fiber Leg VSS Leg > --- UTILITY ---------- Small Storage Unit Trap Scanner Signal Interpreter Hardened Medium Armor Plating Hardened Medium Armor Plating > --- WEAPON ----------- Heavy Assault Rifle Greatsword > --- INVENTORY -------- Deuterium Engine Carbon-fiber Leg Carbon-fiber Leg VSS Leg Assault Rifle Heavy Assault Rifle Heavy Assault Rifle Grenade Launcher [Rating: 31] Favorites ----------- Power Ion Engine Engine Ion Engine Power Core Light Nuclear Core Propulsion Aluminum Leg Treads Light Treads Leg Aluminum Leg Utility Small Storage Unit Device Sensor Array Storage Small Storage Unit Processor Signal Interpreter Protection Hardened Medium Armor Plating Weapon Heavy Assault Rifle Energy Gun Precision Shock Rifle Ballistic Gun Heavy Assault Rifle Launcher Grenade Launcher Special Weapon Mining Laser Slashing Weapon Greatsword Build | -11 -10 -9 -8 ------- Run | Yrd Mat Mat Mat Slots Evolved 4 | . . 2 2 Power . | . . . . Propulsion . | . . . . Utility 3 | . . 2 1 Weapon 1 | . . . 1 Parts Attached 45 | 7 5 16 17 Power 6 | 1 . 2 3 Engine 5 | 1 . 2 2 Core 1 | . . . 1 Reactor . | . . . . Propulsion 15 | 2 2 6 5 Treads 2 | 2 . . . Leg 13 | . 2 6 5 Wheel . | . . . . Hover . | . . . . Flight . | . . . . Utility 12 | 2 . 4 6 Device 7 | 1 . 3 3 Storage 1 | 1 . . . Processor 1 | . . 1 . Hackware . | . . . . Protection 3 | . . . 3 Artifact . | . . . . Weapon 12 | 2 3 4 3 Energy Gun 1 | . . . 1 Energy Cannon . | . . . . Ballistic Gun 8 | 2 2 4 . Ballistic Cannon . | . . . . Launcher 1 | . . . 1 Special Weapon 1 | . 1 . . Impact Weapon . | . . . . Slashing Weapon 1 | . . . 1 Piercing Weapon . | . . . . Special Melee Weapon . | . . . . Unidentified Prototypes 1 | . . . 1 Parts Lost 14 | . . . 14 Power 3 | . . . 3 Propulsion 2 | . . . 2 Utility 3 | . . . 3 Weapon 6 | . . . 6 Highest Loss Streak 11 | . . . 11 To Critical Strikes . | . . . . Average Backups 6 | 3 7 6 7 Power 1 | . 1 1 1 Propulsion 1 | 1 1 1 2 Utility . | . 1 . . Weapon 2 | 1 2 3 3 Tool/Special . | . . . . Unused Backups 8 | . 2 4 2 Power . | . . . . Propulsion 5 | . . 4 1 Utility . | . . . . Weapon 3 | . 2 . 1 Tool/Special . | . . . . Average Slot Usage (%) 97 | . 100 99 92 Engine 10 | . 14 11 7 Treads 2 | . 13 . . Leg 19 | . 14 22 17 Device 18 | . 14 22 16 Storage 10 | . 14 11 9 Processor 8 | . . 10 9 Protection 3 | . . . 8 Ballistic Gun 22 | . 26 21 21 Peak Build Rating 31 | 9 9 20 31 Average Rating 16 | 6 9 12 25 On Entrance 9 | . 9 9 20 Naked Turns . | . . . . Heaviest Build 40 | 13 15 23 40 Greatest Support 40 | 40 40 34 30 Greatest Overweight (x) 3 | . . 1 3 Average Overweight (x) . | . . . . Largest Inventory Capacity 8 | 8 8 8 8 Average Capacity 7 | 7 8 8 8 Most Carried 8 | 6 8 8 8 Average Carried 6 | 3 7 6 7 Final Capacity 8 | 8 8 8 8 Final Carried 8 | 6 8 8 7 Class Distribution -------------------- 62% | Mutant 34% | Skirmisher Dominant Class ---------------- Mutant | -10/Materials Mutant | -9/Materials Skirmisher | -8/Materials Resources | -11 -10 -9 -8 ----------- Run | Yrd Mat Mat Mat Matter Collected 1197 | 216 89 357 535 Remotely . | . . . . Salvage Created 1171 | 136 89 302 644 Parts 76 | 9 3 20 44 Haulers Intercepted . | . . . . Recyclers Shooed 2 | . . 1 1 Parts Field Recycled . | . . . . Retrieved Matter . | . . . . Parts Self-Destructed . | . . . . Prevented . | . . . . Kills | -11 -10 -9 -8 ------- Run | Yrd Mat Mat Mat Combat Hostiles Destroyed 24 | . 2 7 15 Melee 2 | . . . 2 Guns 21 | . 2 6 13 AOE 1 | . . 1 . Classes Destroyed 8 | 2 1 2 3 Tunneler 2 | 2 . . . Recycler 1 | 1 . . . Swarmer 4 | . . . 4 Grunt 14 | . 2 4 8 Duelist 1 | . . 1 . Sentry 2 | . . 2 . Specialist 2 | . . . 2 Heavy 1 | . . . 1 Best Kill Streak 6 | 1 2 3 6 Combat Bots Only 6 | . 2 3 6 Max Kills in Single Turn 3 | 1 1 1 3 Gunslinging 2 | . . . 2 Exploded 1 | . . 1 . Melee 1 | . . . 1 Uniques/NPCs Destroyed . | . . . . Combat | -11 -10 -9 -8 -------- Run | Yrd Mat Mat Mat Hostile Shots Fired 258 | . 34 29 195 Missed 66 | . 4 7 55 Hits 192 | . 30 22 140 Melee 1 | . . 1 . Projectile 191 | . 30 21 140 Critical Strikes 10 | . . . 10 Damage Taken 3171 | . 410 360 2401 Core 663 | . 32 66 565 Absorbed by Shields . | . . . . Core Remaining (%) 90 | 100 87 83 . Volleys Fired 88 | 6 19 30 33 Largest 3 | 2 2 2 3 Hottest 100 | 40 100 100 69 Shots Fired 190 | 12 35 53 90 Gun 180 | 12 32 46 90 Cannon . | . . . . Launcher . | . . . . Special 10 | . 3 7 . Kinetic 180 | 12 32 46 90 Thermal 10 | . 3 7 . Explosive . | . . . . Electromagnetic . | . . . . Robot Hit Streak 17 | 4 13 17 12 Robot Miss Streak 6 | 1 2 6 2 Penetration Max . | . . . . Secondary Targets 5 | . 1 . 4 Max Gunslinging Chain 2 | . 1 . 2 Shots Hit Robots 130 | 7 23 30 70 Core Hits 58 | 5 7 14 32 Critical Kills . | . . . . Critical Parts Destroyed 1 | . 1 . . Critical Strikes 1 | . 1 . . Destroy 1 | . 1 . . Melee Attacks 6 | . . . 6 Impact . | . . . . Slashing 6 | . . . 6 Piercing . | . . . . Sneak Attacks . | . . . . Combat Hostiles . | . . . . Follow-up Attacks . | . . . . Damage Inflicted 1819 | 67 176 432 1144 Guns 1579 | 67 173 366 973 Cannons . | . . . . Explosions 66 | . . 66 . Melee 171 | . . . 171 Ramming 3 | . 3 . . Kinetic 1579 | 67 173 366 973 Thermal 66 | . . 66 . Explosive . | . . . . Electromagnetic . | . . . . Impact . | . . . . Slashing 171 | . . . 171 Piercing . | . . . . Highest Corruption 2 | . 2 . . Average Corruption 2 | . 2 . . Corruption Purged . | . . . . Corruption Blocked . | . . . . Effects 2 | . 2 . . Matter Fused 1 | . 1 . . Data Loss (minor) 1 | . 1 . . Overload Shots . | . . . . Overflow Damage . | . . . . Projectiles . | . . . . Explosions . | . . . . Melee . | . . . . Knockbacks . | . . . . Impact . | . . . . Kinetic . | . . . . Secondary . | . . . . Self-Inflicted Damage 61 | . 3 58 . Shots 1 | . . 1 . Rammed . | . . . . Targets Rammed . | . . . . Kicked . | . . . . Crushed . | . . . . Highest Temperature 111 | . 80 32 111 Average Temperature 32 | . 32 10 40 Received Heat Transfer 1155 | . 231 123 801 Siege Activations . | . . . . Martial Activations . | . . . . Shielding Activations . | . . . . Robots Disrupted . | . . . . Combat Hostiles . | . . . . Robots Corrupted . | . . . . Combat Hostiles . | . . . . Parts Fried . | . . . . Impact Corruptions . | . . . . Robots Melted . | . . . . Combat Hostiles . | . . . . Parts Melted . | . . . . Heat Transferred 100 | . . 100 . Parts Sabotaged . | . . . . Parts Stolen . | . . . . Parts Stripped . | . . . . Power Chain Reactions . | . . . . Alert | -11 -10 -9 -8 ------- Run | Yrd Mat Mat Mat Maximum Alert Level . | . . . . Low Security (%) 100 | 100 100 100 100 Level 1 . | . . . . Level 2 . | . . . . Level 3 . | . . . . Level 4 . | . . . . Level 5 . | . . . . High Security . | . . . . Max Security . | . . . . Peak Influence 183 | 5 50 142 183 Initial 42 | . . 1 42 Average 36 | 1 9 40 48 Influence Increases 717 | 15 86 234 382 Destroy 0b10 Robot/C 480 | . 40 140 300 Destroy 0b10 Robot/NC 15 | 15 . . . Destroy Leader 110 | . 10 40 60 Successful Hack 51 | . 19 12 20 Disable Machine 30 | . 15 15 . Destroy Structure 31 | . 2 27 2 Influence Decreases 696 | 15 82 138 461 Entered New Map 61 | . . 3 58 Time Decay 495 | 15 82 135 263 Lost Part 140 | . . . 140 Squads Dispatched 6 | . . . 6 Investigation 2 | . . . 2 Extermination . | . . . . Reinforcement 4 | . . . 4 Assault . | . . . . Garrison . | . . . . Intercept . | . . . . Searches Triggered . | . . . . Construction Impeded 1 | . . . 1 Haulers Reinforced . | . . . . Active Scanning Responses . | . . . . Cargo Convoy Interrupts . | . . . . Stealth | -11 -10 -9 -8 --------- Run | Yrd Mat Mat Mat Distress Signals 1 | . . . 1 Communications Jammed . | . . . . Distress Signals . | . . . . Times Spotted 35 | . 2 10 23 Peak Tracking Total 9 | . 2 3 9 Tactical Retreats . | . . . . Traps | -11 -10 -9 -8 ------- Run | Yrd Mat Mat Mat Traps Triggered . | . . . . Indirectly . | . . . . Trap Hack Attempts . | . . . . Triggered . | . . . . Disarmed . | . . . . Reprogrammed . | . . . . Reused . | . . . . Traps Extracted . | . . . . Installed . | . . . . Triggered . | . . . . Machines | -11 -10 -9 -8 ---------- Run | Yrd Mat Mat Mat Machines Disabled 2 | . 1 1 . Max in Single Turn 1 | . 1 1 . Machines Repaired . | . . . . Machines Dismantled . | . . . . Machines Sabotaged . | . . . . Overloaded Fab Kills . | . . . . Hacking | -11 -10 -9 -8 --------- Run | Yrd Mat Mat Mat Machines Accessed 9 | . 5 2 2 Terminals 8 | . 4 2 2 Fabricators . | . . . . Repair Stations . | . . . . Recycling Units 1 | . 1 . . Scanalyzers . | . . . . Garrison Access . | . . . . Total Hacks 27 | . 13 5 9 Successful 12 | . 6 2 4 Failed 15 | . 7 3 5 Catastrophic 3 | . 2 1 . Database Lockouts . | . . . . Manual 16 | . 8 3 5 Terminals 26 | . 12 5 9 Fabricators . | . . . . Repair Stations . | . . . . Recycling Units 1 | . 1 . . Scanalyzers . | . . . . Garrison Access . | . . . . Terminal Hacks 4 | . 2 . 2 Robot Analysis 1 | . . . 1 Prototype ID Bank 1 | . 1 . . Patrol Status 1 | . 1 . . Registered Components 1 | . . . 1 Fabricator Hacks . | . . . . Repair Station Hacks . | . . . . Recycling Unit Hacks . | . . . . Scanalyzer . | . . . . Garrison Access Hacks . | . . . . Unauthorized Hacks 8 | . 4 2 2 Terminals 7 | . 3 2 2 Botnet 7 | . 3 2 2 Fabricators . | . . . . Repair Stations . | . . . . Recycling Units 1 | . 1 . . Reject 1 | . 1 . . Scanalyzers . | . . . . Garrison Access . | . . . . Data Cores Recovered . | . . . . Used . | . . . . Hacking Detections 7 | . 3 2 2 Full Trace Events 6 | . 3 1 2 Feedback Events . | . . . . Feedback Blocked . | . . . . Robot Schematics Acquired . | . . . . Robots Built . | . . . . Authchips . | . . . . Time . | . . . . Total Robot Build Rating . | . . . . Part Schematics Acquired . | . . . . Parts Built . | . . . . Authchips . | . . . . Time . | . . . . Total Part Build Rating . | . . . . Parts Repaired . | . . . . Time . | . . . . Parts Recycled . | . . . . Recycled Matter . | . . . . Retrieved Matter . | . . . . Retrieved Components . | . . . . Parts Scanalyzed . | . . . . Part Schematics Acquired . | . . . . Parts Damaged . | . . . . Bothacking | -11 -10 -9 -8 ------------ Run | Yrd Mat Mat Mat Used RIF Installer . | . . . . Robots Hacked . | . . . . Non-combat . | . . . . Combat . | . . . . Robot Hacks Applied . | . . . . Relay Couplers Released . | . . . . Fabnet Peak Effective % . | . . . . Robots Rewired . | . . . . Allies Hacked . | . . . . Hacks Repelled . | . . . . Allies | -11 -10 -9 -8 -------- Run | Yrd Mat Mat Mat Total Allies . | . . . . Largest Group . | . . . . Highest-Rated Group . | . . . . Highest-Rated Ally . | . . . . Total Orders . | . . . . Ally Attacks . | . . . . Total Damage . | . . . . Kills . | . . . . Allies Corrupted . | . . . . Allies Melted . | . . . . Intel | -11 -10 -9 -8 ------- Run | Yrd Mat Mat Mat Active Infowar (turns) 2540 | 59 416 1131 934 Sensors 1269 | . . 616 653 Terrain 985 | 59 416 510 . Traps 1187 | . . 253 934 Seismic 874 | . . 874 . Robot Analysis Total 1 | . . . 1 Derelict Logs Recovered . | . . . . Drone Launches . | . . . . Drone Recoveries . | . . . . Exploration | -11 -10 -9 -8 ------------- Run | Yrd Mat Mat Mat Turns Passed 2596 | 115 416 1131 934 Spaces Moved 699 | 50 174 211 264 Core 11 | 6 . . 5 Treads 120 | 44 76 . . Legs 568 | . 98 211 259 Wheels . | . . . . Hover . | . . . . Flight . | . . . . Fastest Speed 50 | 50 120 120 90 Average Speed 145 | 146 137 141 154 Slowest Speed 270 | 160 160 200 270 Overloaded Moves . | . . . . Propulsion Burnouts . | . . . . Robots Hopped . | . . . . Potential Cave-ins 2 | . . 2 . Cave-ins Triggered . | . . . . Exploration Rate (%) 20 | 5 35 20 20 Regions Visited 3 Branch Regions . Pre-discovered Areas . | . . . . Known Exits Taken 1 | . . 1 . Unknown Exits Taken 2 | 1 1 . . Scrap Searched . | . . . . Spaces Dug 9 | . 2 7 . Terrain Destroyed 30 | . 2 28 . Melee . | . . . . Projectile 9 | . 2 7 . AOE 21 | . . 21 . Terrain Rammed 1 | . 1 . . Walls Destroyed . | . . . . Machines Disabled . | . . . . Actions | -11 -10 -9 -8 --------- Run | Yrd Mat Mat Mat Total 2089 | 82 317 982 708 Wait 1150 | 8 100 695 347 Move 696 | 49 173 210 264 Hop . | . . . . Pick Up 50 | 12 9 11 18 Fast Attach 9 | 1 . 2 6 Attach 20 | 6 . 2 12 Detach . | . . . . Swap 31 | . 7 15 9 Drop 38 | . 8 17 13 Fire 88 | 6 19 30 33 Melee 6 | . . . 6 Ram 1 | . 1 . . Kick . | . . . . Crush . | . . . . Escape Stasis . | . . . . Rewire . | . . . . Trap . | . . . . Miscellaneous . | . . . . Route ------- -11/Scrapyard -10/Materials -9/Materials -8/Materials History --------- Turn | Location | Event 6 | -11/Scrapyard | Discovered new exit (range 14) 116 | -11/Scrapyard | Entered Materials 338 | -10/Materials | Build established: Mutant 504 | -10/Materials | Discovered new exit (range 13) 532 | -10/Materials | Entered another Materials area 532 | -9/Materials | Evolved 2 slots: Utility x2 1652 | -9/Materials | Discovered new exit (range 7) 1661 | -9/Materials | Identified exit to Materials 1663 | -9/Materials | Entered another Materials area 1663 | -8/Materials | Evolved 2 slots: Utility x1, Weapon x1 1692 | -8/Materials | Build established: Skirmisher 2548 | -8/Materials | Core integrity fell below 50% 2563 | -8/Materials | Core integrity fell below 20% 2595 | -8/Materials | Lost 11 parts (2p2n1u6w) 2597 | -8/Materials | Destroyed by G-47 Trooper with Particle Gun Last Messages --------------- 02555_ Acquired 10 matter. 02555_ K-01 Serf collects debris. 02556_ Acquired 4 matter. 02558_ Acquired Weapon Cycler. 02559_ Assault Rifle destroyed. 02560_ K-01 Serf collects debris. 02560_ K-01 Serf destroyed. 02560_ Acquired Dynamic Insulation System. 02563_ K-01 Serf collects debris. 02564_ Deuterium Engine destroyed. 02564_ G-47 Trooper suffers critical hit (Burn). 02568_ K-01 Serf collects debris. 02570_ Acquired Particle Gun. 02573_ Acquired Imp. Heat Sink. 02575_ Acquired Carbon-fiber Leg. 02581_ Acquired Hpw. Shotgun. 02581_ U-05 Engineer builds a Door. 02584_ Acquired 6 matter. 02585_ Acquired 10 matter. 02590_ Acquired Lgt. Nuclear Core. Map ----- +----------------------------------------------------+ | ????????????## ##??????????????????????????????? | | ???????????## #??????????????????????????????? | | ???????????? #??????????????????????????????? | | ???????????? ???????????????????????????????? | | ????????????? ???????????????????????????????? | | ????????????? ???????????????????????????????? | | ?????????????# #???????????????????????????????? | | ?????????????# #??????##############???????????? | | ?????????????# #??????# ==! #???????????? | | ?????????????# #??????# """ ==! #???????????? | | ?"???????????# #??????# """ = #???????????? | | ?"" ?????????# #??????# """ ###########?? | | """ ????????# ##?????# # #?? | | "" ########% ##############+###### """ ??? | | * = #??# + """"" #?? | | !!%!= % %#??# ##### """"" #?? | | =!! =*#??# #???# """"" #?? | | ############+########## **#??# #???#[ """ #?? | | ???????# %% #????#! *#??# #???# #?? | | ???????# % "" #????# #??# #???# = #?? | | ???????# """ #????# #### #######+#######?? | | ???????# """ S" #????# % #?? | | ???????# """ #????# *=! #?? | | ???????# """ #????# g #?? | | ???????# #????####g##########T###### #?? | | ???????# #????# =@ [ #????####!! #?? | | ???????#### ######????# ["""= #???????#!! #?? | | ??????????###?????????# """ [ #???????#// ### | | ??????????????????????# """ #???????#/ | | | ??????????????????????# #???????#[[ | | ??????????????????????# """ #???????#[[ | | ??????????????????????# """ #???????########### | | ??????????????????????# """ #?????????????????? | | ??????????????????????# #?????????????????? | | ??????????????????????##########?????????????????? | | ?????????????????????????????????????????????????? | | ?????????????????????????????????????????????????? | | ?????????????????????????????????????????????????? | | ?????????????????????????????????????????????????? | | ?????????????????????????????????????????????????? | | ?????????????????????????????????????????????????? | | ?????????????????????????????????????????????????? | | | | | | | | | | | | | | | | | +----------------------------------------------------+ Best States ------------- Heat Dissipation 31 Energy Generation 14 Energy Capacity 275 Matter Stores 300 Matter Capacity 300 Sight Range 16 Robot Scan Range 14 Terrain Scan Range 16 Terrain Scan Density 10 EM Shielding 2 Armor Coverage 450 Weapon Cycling 15 Evasion (%) 57 Recoil Reduction 2 Item Schematics ----------------- None Robot Schematics ------------------ None Fabricated ------------ Nothing Repaired ---------- Nothing Alien Tech Used ----------------- None Achievements -------------- Gunslinger Challenges ------------ None Game ------ Seed MyomerPitchforkLog Manual? 0 Play Time 00:22:10 Cumulative 34.6 hours Start 2025.08.07 @ 19:42:45 End 2025.08.07 @ 20:04:48 Sessions 1 Manual Loads 0 Difficulty Rogue Special Mode None Game No. 71 Rogue 68 Adventurer 3 Explorer 0 Win Type - Total 0 Types 0/0/0/0/0/0/0/0/0/0 Lore% 26 Gallery% 26 Achievement% 27 Wizard Run 0 Options --------- Layout 1 ASCII 0 Keyboard 0 Movement Mouse Keybinds 0 Fullscreen 1 Font 24/Smallcaps Map View 50x35 Zoom Use 0% Tactical HUD 1 Map Filters NONE Filters NONE Steam 1 RUN: 57a581fd-a536-4255-a374-c9f3b1a2c9e5